bitfinex/quotes_SOLUSD_20260311
["timestamp","ask_amount","ask_price","bid_price","bid_amount"]
[1773270421665,1.12154912,87.199,87.168,1.12658485]
[1773270421975,1.12154912,87.189,87.162,1.12658485]
[1773270422850,1.12154912,87.187,87.163,11.47275793]
[1773270423061,1.12154912,87.187,87.164,1.12658485]
[1773270424883,1.12154912,87.187,87.166,1.12658485]
[1773270425047,11.46900609,87.192,87.166,1.12658485]
[1773270425048,1.12154912,87.191,87.166,1.12658485]
[1773270426573,1.12154912,87.189,87.168,1.12658485]
[1773270428190,1.12154912,87.189,87.163,11.47267904]
[1773270428485,1.12154912,87.179,87.163,11.47267904]
[1773270429893,1.12154912,87.179,87.162,1.12658485]
[1773270430566,12.5916139,87.184,87.162,1.12658485]
[1773270431678,12.5916139,87.184,87.14,2.94800933]
[1773270431679,1.12154912,87.169,87.134,1.12658485]
[1773270431979,40.14267854,87.189,87.134,1.12658485]
[1773270431980,1.12154912,87.159,87.134,1.12658485]
[1773270433680,1.12154912,87.159,87.136,1.12658485]
[1773270433864,1.12154912,87.167,87.136,1.12658485]
[1773270435259,1.12154912,87.167,87.138,1.12658485]
[1773270438972,1.12154912,87.167,87.14,1.12658485]
[1773270439965,1.12178762,87.166,87.14,1.12658485]
[1773270441588,1.12163801,87.164,87.141,11.47565439]
[1773270444085,1.12119943,87.159,87.135,1.07269074]
[1773270446290,1.12091537,87.149,87.129,1.07269074]
[1773270447700,1.12091537,87.149,87.129,12.54984374]
[1773270448677,1.12091537,87.149,87.13,1.07269074]
[1773270450397,2.95037332,87.17,87.131,1.07269074]
[1773270450600,4.0707399,87.17,87.131,1.07269074]
[1773270450972,4.0707399,87.17,87.13,4.09808363]
[1773270450973,4.0707399,87.17,87.133,1.07269074]
[1773270452106,4.0707399,87.17,87.135,1.07269074]
[1773270453173,3.69383402,87.205,87.12,1.24784205]
[1773270453174,1.11997131,87.179,87.141,1.07269074]
[1773270453906,12.59062364,87.179,87.141,1.07269074]
[1773270456793,2.95037332,87.18,87.143,1.07269074]
[1773270456993,1.11946514,87.179,87.143,1.07269074]
[1773270458900,1.1192207,87.177,87.145,1.07269074]
[1773270461605,1.11886446,87.175,87.147,1.12667434]
[1773270462887,1.11886446,87.175,87.149,1.12667434]
[1773270463085,2.92,87.189,87.149,1.12667434]
[1773270463086,1.11863373,87.184,87.149,1.12667434]
[1773270463295,1.11863373,87.183,87.149,1.12667434]
[1773270464015,1.11852035,87.179,87.149,1.12667434]
[1773270464304,1.11852035,87.169,87.149,1.12667434]
[1773270467917,1.11807971,87.178,87.151,1.12667434]
[1773270468909,1.11807971,87.178,87.131,1.14769714]
[1773270468910,2.95037332,87.18,87.153,1.12667434]
[1773270469692,4.06834602,87.18,87.153,1.12667434]
[1773270469908,11.47065233,87.179,87.153,1.12667434]
[1773270470212,1.11776234,87.178,87.153,1.12667434]
[1773270471516,1.11765897,87.176,87.155,1.10399247]
[1773270472101,2.95037332,87.18,87.155,1.10399247]
[1773270472616,14.38934431,87.189,87.155,1.10399247]
[1773270472804,2.95037332,87.19,87.155,1.10399247]
[1773270473114,4.0678291,87.19,87.155,1.10399247]
[1773270473704,11.46933672,87.189,87.157,1.10399247]
[1773270473907,1.11735593,87.188,87.157,1.10399247]
[1773270474108,4.06772925,87.18,87.157,1.10399247]
[1773270474293,1.11735593,87.179,87.157,1.10399247]
[1773270474993,11.46933672,87.189,87.157,1.10399247]
[1773270475215,1.11725723,87.188,87.157,1.10399247]
[1773270477512,1.11706321,87.179,87.15,1.10399247]
[1773270477695,1.11706321,87.186,87.15,1.10399247]
[1773270478022,1.11696787,87.191,87.151,1.10399247]
[1773270478212,1.11696787,87.191,87.152,1.10399247]
[1773270478411,1.11696787,87.191,87.154,1.10399247]
[1773270479515,1.11696787,87.191,87.155,40.15833858]
[1773270479814,1.11696787,87.191,87.156,1.10399247]
[1773270481117,1.11668837,87.189,87.158,1.10399247]
[1773270484015,1.11668837,87.189,87.16,1.10399247]
[1773270484212,1.11668837,87.189,87.159,40.15649559]
[1773270484213,1.1164184,87.209,87.171,1.10399247]
[1773270485027,1.1164184,87.209,87.167,1.14722314]
[1773270485028,1.1164184,87.209,87.181,1.10399247]
[1773270485418,1.11633046,87.215,87.181,1.10399247]
[1773270486628,1.11633046,87.215,87.183,1.10399247]
[1773270487818,1.11633046,87.215,87.185,1.10399247]
[1773270488006,1.11607267,87.214,87.185,1.10399247]
[1773270490518,2.95037332,87.22,87.172,2.92]
[1773270490519,1.11590571,87.221,87.191,1.10399247]
[1773270490729,1.11590571,87.226,87.191,1.10399247]
[1773270492029,1.11574257,87.224,87.193,1.10399247]
[1773270494542,1.11558315,87.219,87.186,2.2509656]
[1773270494752,1.11558315,87.209,87.183,11.47012605]
[1773270495043,1.11558315,87.209,87.184,1.10399247]
[1773270496041,1.11542737,87.207,87.185,12.5738554]
[1773270496338,1.11542737,87.207,87.186,1.10399247]
[1773270498142,1.11542737,87.207,87.165,1.14724946]
[1773270498143,1.11527514,87.199,87.169,12.57591972]
[1773270498341,1.11527514,87.199,87.128,9.95742439]
[1773270498342,1.11527514,87.179,87.144,1.10399247]
[1773270499733,1.11527514,87.179,87.146,1.10399247]
[1773270499930,1.11527514,87.179,87.152,1.1138808]
[1773270505045,1.11527514,87.179,87.154,1.1138808]
[1773270507146,1.08402747,87.178,87.156,1.1138808]
[1773270507348,1.08402747,87.169,87.139,1.1138808]
[1773270508849,1.08402747,87.167,87.142,1.1138808]
[1773270512049,1.08402747,87.167,87.144,1.1138808]
[1773270512249,1.08402747,87.165,87.144,1.1138808]
[1773270512569,2.47215037,104.87,87.174,1.1138808]
[1773270512570,1.08402747,87.219,87.174,1.1138808]
[1773270512851,1.08402747,87.219,87.191,1.1138808]
[1773270513668,2.94918407,87.23,87.192,11.4689421]
[1773270513669,1.08402747,87.217,87.192,11.4689421]
[1773270516657,1.08402747,87.215,87.18,2.94918407]
[1773270516951,1.08402747,87.209,87.175,12.58505946]
[1773270517140,1.08402747,87.209,87.176,1.1138808]
[1773270517556,1.08402747,87.209,87.175,11.47117866]
[1773270517557,1.08402747,87.249,87.201,1.1138808]
[1773270517761,0.2,87.28,87.191,1.1138808]
[1773270517762,1.08402747,87.219,87.191,1.1138808]
[1773270519274,1.08402747,87.219,87.192,12.5828229]
[1773270519673,1.08402747,87.219,87.192,11.4689421]
[1773270519977,1.08402747,87.225,87.201,1.1138808]
[1773270521476,1.07256478,87.223,87.201,1.1138808]
[1773270522860,1.07256478,87.223,87.202,11.46762688]
[1773270523861,1.07256478,87.223,87.201,1.1138808]
[1773270524473,1.07256478,87.221,87.201,12.58157924]
[1773270526864,1.07256478,87.221,87.202,1.06063554]
[1773270528283,1.07256478,87.221,87.199,11.46795748]
[1773270528782,1.07256478,87.221,87.199,12.52859302]
[1773270528983,1.07256478,87.221,87.199,11.46795748]
[1773270529170,1.07256478,87.221,87.2,1.06063554]
[1773270531474,1.07854438,87.219,87.19,4.01069752]
[1773270531685,1.07854438,87.219,87.191,11.46907364]
[1773270531881,1.07854438,87.219,87.183,1.1470126]
[1773270531882,1.07854438,87.199,87.17,1.06151345]
[1773270532782,11.46526026,87.22,87.157,12.53506118]
[1773270532783,1.07854438,87.179,87.157,12.53506118]
[1773270533588,1.07854438,87.177,87.158,11.47341609]
[1773270534774,1.07854438,87.177,87.145,1.06151345]
[1773270535680,1.07854438,87.175,87.147,1.06151345]
[1773270537900,1.07854438,87.175,87.148,11.47473263]
[1773270538204,1.07854438,87.175,87.149,1.06151345]
[1773270539600,2.94918407,87.17,87.149,1.06151345]
[1773270539784,1.07854438,87.169,87.149,1.06151345]
[1773270539989,1.07854438,87.169,87.148,11.47473263]
[1773270539990,1.07854438,87.159,87.127,1.06151345]
[1773270540288,1.07854438,87.139,87.12,0.1]
[1773270540902,2.94918407,87.15,87.121,1.06151345]
[1773270541091,1.07854438,87.167,87.131,1.06151345]
[1773270541295,1.07854438,87.167,87.122,1.1478157]
[1773270541296,1.07854438,87.167,87.141,1.06151345]
[1773270541900,1.07854438,87.167,87.143,1.06151345]
[1773270542093,1.07854438,87.189,87.151,1.06151345]
[1773270542706,1.07854438,87.189,87.161,1.06151345]
[1773270544308,1.07854438,87.199,87.163,1.06151345]
[1773270544609,1.07854438,87.217,87.181,1.06151345]
[1773270544987,1.07854438,87.216,87.181,1.06151345]
[1773270546305,1.07854438,87.216,87.18,2.94918407]
[1773270546306,1.07854438,87.216,87.183,1.06151345]
[1773270548604,1.07854438,87.214,87.185,1.06151345]
[1773270551311,1.07854438,87.214,87.186,11.46973137]
[1773270551621,1.07854438,87.214,87.187,1.06151345]
[1773270554592,1.07854438,87.214,87.188,11.46946827]
[1773270554798,1.07854438,87.214,87.189,1.06151345]
[1773270555709,1.07854438,87.229,87.201,1.06151345]
[1773270557024,2.94918407,87.23,87.202,12.52914033]
[1773270557025,1.07854438,87.227,87.202,12.52914033]
[1773270558030,1.07854438,87.227,87.203,1.06151345]
[1773270558906,1.07854438,87.225,87.198,11.46810175]
[1773270559224,1.07854438,87.225,87.199,1.06151345]
[1773270560724,1.16666341,87.223,87.199,1.06151345]
[1773270561305,1.16666341,87.219,87.191,11.46907364]
[1773270561610,1.16666341,87.219,87.153,91.79227797]
[1773270561611,1.16666341,87.199,87.161,11.47302119]
[1773270562912,1.16666341,87.197,87.162,1.14728895]
[1773270563519,2.92,87.212,87.162,1.14728895]
[1773270563520,2.94833235,87.22,87.181,1.12371772]
[1773270563710,11.46434016,87.227,87.191,1.12371772]
[1773270565323,2.94833235,87.22,87.193,1.12371772]
[1773270565516,1.16666341,87.219,87.193,1.12371772]
[1773270566611,1.16666341,87.219,87.169,1.14719682]
[1773270566612,1.16666341,87.199,87.173,11.47144184]
[1773270567118,1.16666341,87.199,87.147,3.69383402]
[1773270567119,1.16666341,87.189,87.153,1.12371772]
[1773270567624,1.16666341,87.187,87.155,1.12371772]
[1773270569845,1.16666341,87.187,87.157,1.12371772]
[1773270570128,1.16666341,87.192,87.161,1.12371772]
[1773270571520,1.16666341,87.189,87.163,1.12371772]
[1773270573235,11.46907364,87.191,87.104,2.92]
[1773270573236,2.94833235,87.17,87.104,2.92]
[1773270573424,1.16666341,87.147,87.121,41.47828881]
[1773270573615,2.92,87.169,87.121,41.47828881]
[1773270573616,1.16666341,87.165,87.13,2.94833235]
[1773270573813,1.16666341,87.159,87.121,11.47828881]
[1773270574024,1.16666341,87.139,87.1,2.94833235]
[1773270574222,1.16666341,87.139,87.101,28.70212315]
[1773270574426,1.16666341,87.129,87.09,2.94833235]
[1773270574615,1.16666341,87.129,87.1,2.94833235]
[1773270574815,1.16666341,87.119,87.085,11.48303381]
[1773270575035,1.16666341,87.119,87.085,40.19061835]
[1773270575333,1.16666341,87.119,87.091,1.12371772]
[1773270575836,1.16666341,87.119,87.092,11.48211087]
[1773270577228,1.16666341,87.119,87.092,40.18738804]
[1773270577448,1.16666341,87.119,87.093,1.12371772]
[1773270577931,1.16666341,87.128,87.095,1.12371772]
[1773270578125,1.16666341,87.135,87.101,1.12371772]
[1773270578327,1.16666341,87.134,87.101,1.12371772]
[1773270578836,1.16666341,87.129,87.095,1.12371772]
[1773270579821,7.38294225,87.13,87.096,1.12371772]
[1773270580027,1.16666341,87.127,87.097,12.60516943]
[1773270580432,1.16666341,87.127,87.097,11.48145171]
[1773270581020,11.47736663,87.128,87.097,11.48145171]
[1773270581021,1.17985427,87.119,87.097,11.48145171]
[1773270582331,1.17985427,87.119,87.094,28.70461799]
[1773270582332,1.17985427,87.119,87.095,1.15023441]
[1773270582641,1.17985427,87.119,87.091,11.48224271]
[1773270583440,1.17985427,87.119,87.092,1.15023441]
[1773270585549,1.17985427,87.118,87.092,11.48211087]
[1773270585847,11.47867227,87.119,87.082,2.92]
[1773270585848,1.17985427,87.109,87.082,2.92]
[1773270586034,1.17985427,87.109,87.08,0.1]
[1773270586947,1.17985427,87.109,87.083,11.48329754]
[1773270587142,1.17985427,87.107,87.08,0.1]
[1773270588230,7.38294225,87.1,87.08,0.1]
[1773270588434,1.17985427,87.089,87.061,11.48619933]
[1773270589263,1.14765763,87.107,87.012,1.15023441]
[1773270589264,1.17985427,87.069,87.012,1.15023441]
[1773270589432,1.17985427,87.044,87.022,11.49124303]
[1773270589755,3.69383402,87.077,87.01,7.48294225]
[1773270589756,1.17985427,87.066,87.032,1.15023441]
[1773270590230,1.17985427,87.066,87.031,40.21555536]
[1773270590231,1.13478671,87.049,87.03,0.1]
[1773270590643,7.38294225,87.05,87.03,0.1]
[1773270590830,8.51772896,87.06,87.031,1.08826152]
[1773270591138,2.92,87.068,87.038,1.08826152]
[1773270591139,1.13478671,87.067,87.038,1.08826152]
[1773270591326,1.13478671,87.067,87.032,1.08826152]
[1773270591530,7.38294225,87.09,87.051,1.08826152]
[1773270591849,11.48169543,87.096,87.061,1.08826152]
[1773270592478,7.38294225,87.09,87.061,1.08826152]
[1773270592745,11.48169543,87.096,87.061,1.08826152]
[1773270593252,11.48169543,87.096,87.063,1.08826152]
[1773270593448,7.38294225,87.09,87.052,1.08826152]
[1773270593641,0.85907572,87.089,87.052,1.08826152]
[1773270594046,12.34055323,87.096,87.061,1.08826152]
[1773270594253,1.4350167,87.107,87.081,1.08826152]
[1773270594546,0.8588578,87.117,87.081,1.08826152]
[1773270594853,0.8588578,87.115,87.081,1.08826152]
[1773270595049,11.47868408,87.118,87.091,1.08826152]
[1773270595651,0.85639296,87.117,87.091,1.08826152]
[1773270596755,0.85639296,87.117,87.092,11.48211087]
[1773270596953,0.8503566,87.109,87.069,1.08826152]
[1773270597154,0.8503566,87.116,87.081,1.08826152]
[1773270597351,0.8503566,87.116,87.091,1.08826152]
[1773270597660,0.8503566,87.124,87.091,1.08826152]
[1773270598340,11.47736663,87.128,87.078,11.48390476]
[1773270598341,0.84679812,87.109,87.078,11.48390476]
[1773270599332,0.84328051,87.107,87.078,11.48390476]
[1773270599947,0.84328051,87.107,87.078,12.57216628]
[1773270600345,0.83980331,87.099,87.072,11.48464593]
[1773270601556,12.32106003,87.099,87.072,1.08826152]
[1773270601740,7.38294225,87.11,87.072,1.08826152]
[1773270601937,7.38294225,87.12,87.081,1.08826152]
[1773270602144,7.38294225,87.12,87.062,0.57444782]
[1773270602145,0.83296826,87.125,87.091,1.08826152]
[1773270602343,28.68944025,87.141,87.062,0.57444782]
[1773270602344,11.47591778,87.139,87.11,7.38294225]
[1773270602558,11.47591778,87.139,87.111,1.08826152]
[1773270603942,11.47591778,87.139,87.112,11.47947469]
[1773270604147,11.47591778,87.139,87.113,1.08826152]
[1773270604855,1.43435803,87.147,87.113,1.08826152]
[1773270605062,2.92,87.148,87.121,1.08826152]
[1773270605263,11.4748643,87.147,87.121,1.08826152]
[1773270605967,0.82300728,87.156,87.123,1.08826152]
[1773270606148,2.92,87.167,87.141,1.08826152]
[1773270606348,3.73976293,87.167,87.141,1.08826152]
[1773270606754,12.29227886,87.165,87.141,1.08826152]
[1773270607054,0.81655585,87.164,87.141,1.08826152]
[1773270607747,8.1994981,87.16,87.131,1.08826152]
[1773270608149,2.92,87.167,87.122,40.17354972]
[1773270608150,11.47328445,87.159,87.133,1.08826152]
[1773270610354,11.47328445,87.159,87.106,57.97330996]
[1773270610355,0.80715394,87.159,87.127,11.47745678]
[1773270611254,0.80715394,87.159,87.126,1.08826152]
[1773270611255,7.38294225,87.15,87.126,1.08826152]
[1773270611456,0.80409168,87.149,87.118,1.08826152]
[1773270611967,7.38294225,87.13,87.094,1.08826152]
[1773270612172,7.38294225,87.14,87.101,1.08826152]
[1773270612346,1.43411119,87.162,87.111,1.08826152]
[1773270612347,11.47552126,87.143,87.111,1.08826152]
[1773270612952,11.47525934,87.144,87.111,1.08826152]
[1773270613572,2.92,87.145,87.111,1.08826152]
[1773270614473,11.47328445,87.159,87.123,1.08826152]
[1773270615055,0.79219037,87.158,87.123,1.08826152]
[1773270616771,11.47354773,87.157,87.124,11.47789357]
[1773270616952,11.47354773,87.157,87.125,1.08826152]
[1773270617675,11.47354773,87.157,87.131,1.08826152]
[1773270618673,1.43404538,87.166,87.141,1.08826152]
[1773270618879,11.46968247,87.187,87.151,1.08826152]
[1773270619069,11.47006375,87.184,87.151,1.08826152]
[1773270619376,8.16656069,87.19,87.151,1.08826152]
[1773270619377,11.67054957,87.18,87.151,1.08826152]
[1773270620477,0.2,87.18,87.151,1.08826152]
[1773270620982,0.2,87.18,87.163,1.0960327]
[1773270622884,0.2,87.18,87.165,1.0960327]
[1773270625074,0.2,87.18,87.167,1.0960327]
[1773270626075,2.92,87.201,87.168,1.0960327]
[1773270626263,2.92,87.201,87.171,1.0960327]
[1773270627581,2.92,87.201,87.172,11.47157344]
[1773270627783,0.95709891,87.199,87.173,1.0960327]
[1773270628079,0.95461158,87.189,87.153,1.0960327]
[1773270630781,7.36987303,87.19,87.151,28.68562809]
[1773270630782,0.94972232,87.187,87.155,1.0960327]
[1773270632458,7.36987303,87.18,87.155,1.0960327]
[1773270632660,8.31474093,87.18,87.155,1.0960327]
[1773270633061,11.47065233,87.179,87.155,1.0960327]
[1773270633287,0.9448679,87.18,87.157,1.0960327]
[1773270633587,11.46944385,87.189,87.161,1.0960327]
[1773270634474,11.46881056,87.193,87.162,11.47288956]
[1773270634679,0.94004841,87.192,87.163,1.0960327]
[1773270635687,28.67071595,87.197,87.164,11.47262631]
[1773270635688,0.9376801,87.189,87.164,11.47262631]
[1773270636483,0.935339,87.206,87.164,12.56865901]
[1773270636690,0.935339,87.199,87.164,12.56865901]
[1773270637877,7.36987303,87.2,87.165,1.0960327]
[1773270637878,0.93302478,87.197,87.165,1.0960327]
[1773270639787,0.92847579,87.189,87.159,1.0960327]
[1773270640100,0.92624041,87.188,87.159,1.0960327]
[1773270641890,0.91968713,87.186,87.159,1.0960327]
[1773270642396,0.91968713,87.186,87.159,12.56924072]
[1773270643689,0.9175527,87.184,87.159,12.56924072]
[1773270643893,0.9175527,87.184,87.148,28.68661134]
[1773270643894,0.9175527,87.184,87.151,11.474271]
[1773270644078,0.9175527,87.184,87.152,1.0264585]
[1773270644900,0.91544277,87.179,87.152,1.0264585]
[1773270646193,11.47078391,87.178,87.154,1.0264585]
[1773270646998,0.91544277,87.179,87.154,1.0264585]
[1773270647300,11.47033735,87.182,87.154,1.0264585]
[1773270649106,0.90525117,87.181,87.156,1.0264585]
[1773270650986,0.89941286,87.179,87.156,1.0264585]
[1773270652090,0.8975113,87.177,87.157,1.00654958]
[1773270652287,0.8975113,87.177,87.145,11.47512766]
[1773270652788,0.8975113,87.177,87.146,1.00654958]
[1773270655205,11.47104707,87.176,87.148,1.00654958]
[1773270658208,11.47104707,87.176,87.15,1.00654958]
[1773270658804,11.46828445,87.197,87.161,1.00654958]
[1773270659106,15.27308248,87.197,87.161,1.00654958]
[1773270659302,15.27308248,87.197,87.149,40.73284321]
[1773270659303,15.27308248,87.197,87.171,1.00654958]
[1773270659809,0.88479803,87.204,87.171,1.00654958]
[1773270660197,11.46746424,87.204,87.173,1.00654958]
[1773270660793,2.92,87.207,87.173,1.00654958]
[1773270660998,2.92,87.207,87.181,1.00654958]
[1773270663007,2.92,87.207,87.183,1.00654958]
[1773270663398,11.46710088,87.206,87.183,1.00654958]
[1773270665301,11.46710088,87.206,87.184,12.47654407]
[1773270665511,11.46710088,87.206,87.185,1.00654958]
[1773270670514,0.86678565,87.205,87.185,1.00654958]
[1773270671216,0.86678565,87.205,87.186,1.00654958]
[1773270671420,0.86678565,87.205,87.181,11.4703503]
[1773270671615,0.86678565,87.205,87.181,12.47689988]
[1773270671819,0.86678565,87.205,87.181,11.4703503]
[1773270672122,0.86678565,87.205,87.182,1.00654958]
[1773270672310,12.33111345,87.204,87.183,11.47012605]
[1773270672524,12.33111345,87.204,87.184,1.00654958]
[1773270673320,0.86225763,87.203,87.184,1.00654958]
[1773270676000,11.46762688,87.202,87.184,1.00654958]
[1773270676305,0.85788384,87.199,87.174,11.47124241]
[1773270676505,0.85788384,87.179,87.144,1.00654958]
[1773270676718,0.85788384,87.179,87.1,2.94883714]
[1773270676719,0.85788384,87.159,87.138,1.00654958]
[1773270677219,0.85645928,87.169,87.138,1.00654958]
[1773270677821,2.94883714,87.16,87.14,1.00654958]
[1773270678622,11.47305385,87.161,87.14,1.00654958]
[1773270682121,11.47305385,87.161,87.141,12.50148204]
[1773270682910,11.47305385,87.161,87.142,1.02582765]
[1773270683718,0.84693509,87.159,87.133,1.02582765]
[1773270684625,0.84563628,87.139,87.119,11.47855232]
[1773270684823,0.84563628,87.139,87.118,1.02582765]
[1773270685404,0.84435239,87.145,87.118,1.02582765]
[1773270685810,0.84435239,87.145,87.12,1.02582765]
[1773270686025,0.84308325,87.143,87.12,1.02582765]
[1773270687732,0.84308325,87.143,87.096,0.57290537]
[1773270687733,0.84182868,87.138,87.114,1.02582765]
[1773270687913,3.67425564,87.13,87.098,1.02582765]
[1773270688114,0.84058852,87.129,87.098,1.02582765]
[1773270689934,0.84058852,87.129,87.097,11.48145171]
[1773270689935,0.83936261,87.127,87.1,1.02582765]
[1773270690313,2.83242696,87.13,87.1,1.02582765]
[1773270690607,30.12098104,87.149,87.101,1.02582765]
[1773270690608,2.83242696,87.14,87.101,1.02582765]
[1773270691121,3.66937983,87.14,87.101,1.02582765]
[1773270691432,0.83695287,87.139,87.101,1.02582765]
[1773270692532,11.47591778,87.139,87.103,1.02582765]
[1773270694826,0.83344105,87.143,87.105,1.02582765]
[1773270695238,11.47525934,87.144,87.111,1.02582765]
[1773270696435,12.3064259,87.144,87.111,1.02582765]
[1773270697037,0.83004887,87.143,87.113,1.02582765]
[1773270698039,0.82894401,87.139,87.112,11.47947469]
[1773270698340,0.82894401,87.139,87.107,1.02582765]
[1773270698341,0.82894401,87.119,87.1,1.02582765]
[1773270698522,0.82894401,87.119,87.093,2.92]
[1773270698523,0.82894401,87.119,87.093,1.02582765]
[1773270698839,0.82894401,87.119,87.093,12.50774983]
[1773270699422,2.83242696,87.11,87.094,1.02582765]
[1773270699625,12.30752958,87.119,87.094,1.02582765]
[1773270699824,0.82785185,87.118,87.094,1.02582765]
[1773270700224,11.47858557,87.119,87.094,1.02582765]
[1773270700621,2.92,87.132,87.1,2.83242696]
[1773270700836,3.65813197,87.14,87.101,0.96093646]
[1773270700837,0.82570501,87.139,87.101,0.96093646]
[1773270701838,12.30162279,87.139,87.103,0.96093646]
[1773270703841,5.17593181,87.146,87.105,0.96093646]
[1773270704033,5.17593181,87.146,87.104,40.18185157]
[1773270704034,11.47464692,87.149,87.111,0.96093646]
[1773270705444,0.82155732,87.152,87.113,0.96093646]
[1773270705746,11.47433764,87.151,87.113,0.96093646]
[1773270707036,11.47433764,87.151,87.121,0.96093646]
[1773270707437,0.81856993,87.157,87.123,0.96093646]
[1773270708541,0.81856993,87.157,87.122,11.47815706]
[1773270708542,0.81759693,87.149,87.125,0.96093646]
[1773270709629,0.81663509,87.155,87.125,0.96093646]
[1773270710234,0.81663509,87.155,87.124,11.47789357]
[1773270710235,0.81474445,87.169,87.131,0.99854486]
[1773270710434,2.83242696,87.17,87.131,0.99854486]
[1773270710435,12.2868443,87.168,87.131,0.99854486]
[1773270710633,0.81474445,87.167,87.133,0.99854486]
[1773270711837,0.81381538,87.165,87.135,0.99854486]
[1773270713354,0.81381538,87.165,87.137,0.99854486]
[1773270713530,11.47262631,87.164,87.137,0.99854486]
[1773270715457,11.47131025,87.174,87.139,0.99854486]
[1773270715647,2.83242696,87.17,87.139,0.99854486]
[1773270715845,2.83242696,87.2,87.141,0.99854486]
[1773270715846,11.47082802,87.178,87.141,0.99854486]
[1773270716151,3.64263156,87.18,87.141,0.99854486]
[1773270718057,11.47065233,87.179,87.143,0.99854486]
[1773270719059,11.47065233,87.179,87.151,0.99854486]
[1773270720140,3.72760393,87.186,87.153,0.99854486]
[1773270720141,0.80591956,87.182,87.153,0.99854486]
[1773270722458,0.80591956,87.182,87.15,2.83242696]
[1773270722459,11.47038919,87.181,87.154,11.47394267]
[1773270722638,11.47038919,87.181,87.155,0.99854486]
[1773270724159,12.27305453,87.181,87.155,0.99854486]
[1773270724675,0.80266534,87.18,87.155,0.99854486]
[1773270724959,0.80266534,87.18,87.156,11.47367937]
[1773270725262,0.80187502,87.187,87.161,0.99854486]
[1773270727159,0.80032149,87.185,87.161,0.99854486]
[1773270729261,0.79880345,87.188,87.164,12.47117117]
[1773270729642,0.79880345,87.188,87.165,0.99854486]
[1773270730761,0.79805748,87.179,87.151,0.99854486]
[1773270731967,0.79732008,87.177,87.153,0.99854486]
[1773270732471,0.79732008,87.177,87.136,0.99854486]
[1773270732768,0.79732008,87.177,87.137,0.99854486]
[1773270734265,0.7951583,87.175,87.139,0.99854486]
[1773270734666,0.7951583,87.169,87.139,0.99854486]
[1773270734866,0.7951583,87.159,87.122,0.99854486]
[1773270735468,0.7944542,87.169,87.123,0.99854486]
[1773270739052,0.79171774,87.167,87.131,0.99854486]
[1773270739452,0.79171774,87.167,87.124,40.17262751]
[1773270739453,11.47111972,87.176,87.141,0.99854486]
[1773270739659,11.47012605,87.183,87.151,0.99854486]
[1773270739853,12.26184379,87.183,87.151,0.99854486]
[1773270740281,11.47012605,87.183,87.151,0.99854486]
[1773270742177,11.46947316,87.188,87.161,1.02810031]
[1773270742379,2.92,87.193,87.161,1.02810031]
[1773270742597,11.46900274,87.192,87.161,1.02810031]
[1773270743076,2.83242696,87.2,87.161,1.02810031]
[1773270743262,3.62089725,87.2,87.161,1.02810031]
[1773270743462,0.78847029,87.199,87.161,1.02810031]
[1773270744378,0.78847029,87.199,87.16,2.83010583]
[1773270744379,0.78847029,87.199,87.163,1.02810031]
[1773270744768,2.92,87.203,87.171,1.02810031]
[1773270745072,11.46762688,87.202,87.181,1.02810031]
[1773270745667,2.92,87.203,87.181,1.02810031]
[1773270745861,0.78660997,87.219,87.181,1.02810031]
[1773270746577,0.78660997,87.223,87.191,1.02810031]
[1773270746759,11.46420874,87.228,87.201,1.02810031]
[1773270748681,11.46420874,87.228,87.202,1.02810031]
[1773270749882,11.46420874,87.228,87.204,1.02810031]
[1773270750981,0.78364919,87.227,87.204,1.02810031]
[1773270751174,0.78364919,87.227,87.199,1.02810031]
[1773270753368,0.78364919,87.227,87.182,28.67564405]
[1773270753369,0.78251194,87.219,87.193,1.02810031]
[1773270753575,0.78251194,87.199,87.166,1.02810031]
[1773270753775,0.78251194,87.195,87.166,1.02810031]
[1773270754591,0.78251194,87.195,87.156,11.47367937]
[1773270754592,0.7819531,87.189,87.159,1.02810031]
[1773270754799,2.83010583,87.18,87.159,1.02810031]
[1773270755098,0.7819531,87.189,87.159,1.02810031]
[1773270755792,0.78140067,87.187,87.159,1.02810031]
[1773270757992,0.77978117,87.185,87.159,1.02810031]
[1773270760986,11.46999449,87.184,87.161,1.0406356]
[1773270761189,0.77770732,87.183,87.161,1.0406356]
[1773270762787,0.77720366,87.181,87.157,1.0406356]
[1773270762994,0.77720366,87.179,87.151,11.47433764]
[1773270763196,2.83010583,87.17,87.147,11.47482335]
[1773270763372,0.77670579,87.169,87.139,1.0406356]
[1773270763572,0.77670579,87.169,87.14,1.0406356]
[1773270765393,0.77572713,87.179,87.142,1.0406356]
[1773270765578,28.67264005,87.192,87.151,1.0406356]
[1773270765579,0.77572713,87.187,87.151,1.0406356]
[1773270769192,0.77383635,87.185,87.153,1.0406356]
[1773270771394,11.46999449,87.184,87.155,1.01565796]
[1773270771601,0.77247452,87.179,87.155,1.01565796]
[1773270771788,2.83010583,87.18,87.155,1.01565796]
[1773270771985,11.46999449,87.184,87.131,28.69233215]
[1773270771986,2.83010583,87.17,87.131,28.69233215]
[1773270772183,0.77203096,87.169,87.14,1.01565796]